fUSD/lending_fUSD_20240424
["ID","MTS","AMOUNT","RATE_DAILY","PERIOD"]
[323359878,1713916829656,150.0,0.00010318,2]
[323359879,1713916829729,150.0,0.00010307,2]
[323359880,1713916830599,1000.0,0.00010148,2]
[323359881,1713916848992,1853.6911,0.00010455,2]
[323359882,1713916897638,150.0,0.00010273,2]
[323359883,1713916961204,647.61,0.00010455,2]
[323359884,1713917094661,924.9942,0.00010455,2]
[323359885,1713917137655,1500.0,0.00010387,2]
[323359886,1713917187293,183.16,0.0001016,2]
[323359887,1713917207637,506.01,0.00010144,2]
[323359888,1713917249830,150.0,0.00010394,2]
[323359889,1713917257662,1500.0,0.0001041,2]
[323359890,1713917330709,446.87,8.246e-05,2]
[323359891,1713917394514,150.0,0.0001041,2]
[323359915,1713917432231,-446.87,0.0001051,2]
[323359916,1713917432240,-1287.49614424,0.00010519,2]
[323359917,1713917432386,-3712.50385576,0.00010519,2]
[323359918,1713917432395,-553.59572446,0.0001052,2]
[323359919,1713917432410,-1500.0,0.00010522,2]
[323359920,1713917432428,-150.0,0.00010522,2]
[323359921,1713917432446,-150.0,0.00010553,2]
[323359922,1713917432456,-5546.47596119,0.00010554,2]
[323359923,1713917432466,-139739.177,0.00010555,2]
[323359924,1713917432475,-6769.3144,0.00010555,2]
[323359925,1713917432484,-15194.24401274,0.00010555,2]
[323359926,1713917433070,200.0,9.964e-05,2]
[323359935,1713917437993,-1927.90468497,0.00010555,2]
[323359936,1713917438049,-272.09309185,0.00010555,2]
[323359937,1713917438099,-19962.43965766,0.00010555,2]
[323359941,1713917440133,-62643.31855278,0.00010555,2]
[323359942,1713917440142,-400.0,0.000107,3]
[323359943,1713917440152,-150.0,0.00010724,2]
[323359944,1713917440161,-1622.57456,0.0001075,2]
[323359945,1713917440170,-150.0,0.00010755,2]
[323359946,1713917440179,-300.0,0.00010785,2]
[323359947,1713917440188,-900.0,0.000108,3]
[323359948,1713917440197,-5845.67259112,0.00010857,2]
[323359949,1713917440205,-999.99,0.00010857,2]
[323359950,1713917440215,-499.99,0.00010857,2]
[323359951,1713917440224,-178.06315669,0.00010857,2]
[323359952,1713917440232,-1111.78,0.00010858,2]
[323359953,1713917440241,-150.99,0.00010858,2]
[323359954,1713917440250,-299.99,0.00010858,2]
[323359955,1713917440259,-185.21311159,0.00010859,2]
[323359956,1713917440268,-13274.47521027,0.000109,2]
[323359957,1713917440277,-6833.4,0.000109,2]
[323359958,1713917440287,-1400.0,0.000109,3]
[323359959,1713917440296,-1405.14083208,0.00010945,2]
[323359960,1713917440306,-320.94715381,0.00010956,2]
[323359961,1713917440316,-1249.27009627,0.00010956,2]
[323359962,1713917440326,-2183.32123737,0.00010956,2]
[323359963,1713917440336,-1889.07937818,0.00010956,2]
[323359964,1713917440347,-23347.24680025,0.00010956,2]
[323359965,1713917440357,-2359.48463868,0.00010956,2]
[323359966,1713917440367,-429.66272039,0.00010956,2]
[323359967,1713917440378,-216.00889767,0.00010956,2]
[323359968,1713917440388,-1133.64537646,0.00010956,2]
[323359969,1713917440397,-155.0,0.00010956,2]
[323359971,1713917440406,-281.19687612,0.00010956,2]
[323359973,1713917440417,-709.66689776,0.00010956,2]
[323359975,1713917440427,-155.27580194,0.00010956,2]
[323359977,1713917440436,-194.24270021,0.00010956,2]
[323359979,1713917440444,-3381.28227262,0.00010956,2]
[323359981,1713917440453,-706.16360927,0.00010956,2]
[323359982,1713917440463,-284.09786747,0.00010956,2]
[323359984,1713917440472,-155.23784654,0.00010956,2]
[323359986,1713917440481,-157.18413346,0.00010956,2]
[323359988,1713917440490,-155.74994501,0.00010956,2]
[323359990,1713917440499,-468.05645362,0.00010956,2]
[323359992,1713917440508,-155.0,0.00010956,2]
[323359994,1713917440518,-247.12844832,0.00010956,2]
[323359996,1713917440527,-183.11539804,0.00010956,2]
[323359998,1713917440536,-362.04301473,0.00010956,2]
[323360000,1713917440545,-370.07799505,0.00010956,2]
[323360002,1713917440554,-580.33900424,0.00010956,2]
[323360004,1713917440563,-483.72464923,0.00010957,2]
[323360006,1713917440572,-9360.10148686,0.00010957,2]
[323360008,1713917440582,-500.0,0.00010958,2]
[323360010,1713917440591,-500.0,0.00010958,2]
[323360011,1713917440601,-500.0,0.00010958,2]
[323360013,1713917440610,-500.0,0.00010958,2]
[323360015,1713917440822,-500.0,0.00010958,2]
[323360016,1713917440899,-500.0,0.00010958,2]
[323360017,1713917440908,-500.0,0.00010958,2]
[323360018,1713917440919,-500.0,0.00010958,2]
[323360019,1713917440928,-500.0,0.00010958,2]
[323360020,1713917440938,-500.0,0.00010958,2]
[323360021,1713917440948,-500.0,0.00010958,2]
[323360022,1713917440957,-500.0,0.00010958,2]
[323360023,1713917440966,-500.0,0.00010958,2]
[323360024,1713917440976,-500.0,0.00010958,2]
[323360025,1713917440986,-500.0,0.00010958,2]
[323360026,1713917440995,-500.0,0.00010958,2]
[323360027,1713917441004,-500.0,0.00010958,2]
[323360028,1713917441013,-500.0,0.00010958,2]
[323360029,1713917441022,-500.0,0.00010958,2]
[323360030,1713917441032,-500.0,0.00010958,2]
[323360031,1713917441041,-500.0,0.00010958,2]
[323360032,1713917441050,-500.0,0.00010958,2]
[323360033,1713917441059,-500.0,0.00010958,2]
[323360034,1713917441068,-500.0,0.00010958,2]
[323360035,1713917441077,-500.0,0.00010958,2]
[323360036,1713917441086,-500.0,0.00010958,2]
[323360037,1713917441095,-14.10634791,0.00010958,2]
[323360038,1713917441108,-389.24,0.00010958,2]
[323360039,1713917441126,-96.65365209,0.00010958,2]
[323360040,1713917441135,-240.72034791,0.00010958,2]
[323360041,1713917441146,-259.27965209,0.00010958,2]
[323360042,1713917441156,-500.0,0.00010958,2]
[323360043,1713917441165,-500.0,0.00010958,2]
[323360044,1713917441176,-573.08600093,0.00010958,2]
[323360045,1713917441185,-500.0,0.00010958,2]
[323360046,1713917441195,-500.0,0.00010958,2]
[323360047,1713917441204,-500.0,0.00010958,2]
[323360048,1713917441213,-500.0,0.00010958,2]
[323360049,1713917441222,-1000.23,0.00010958,2]
[323360050,1713917441231,-500.0,0.00010958,2]
[323360051,1713917441240,-552.90279313,0.00010958,2]
[323360052,1713917441249,-965.01,0.00010958,2]
[323360053,1713917441258,-500.0,0.00010958,2]
[323360054,1713917441267,-500.0,0.00010958,2]
[323360055,1713917441276,-311.34441023,0.00010958,2]
[323360056,1713917441330,-188.65558977,0.00010958,2]
[323360057,1713917441339,-244.99917351,0.00010958,2]
[323360083,1713917443077,-255.00082649,0.00010958,2]
[323360085,1713917443087,-294.88926927,0.00010958,2]
[323360086,1713917443241,-205.11073073,0.00010958,2]
[323360087,1713917443252,-616.04,0.00010958,2]
[323360088,1713917443262,-500.0,0.00010958,2]
[323360089,1713917443271,-500.0,0.00010958,2]
[323360090,1713917443281,-368.58689643,0.00010958,2]
[323360091,1713917443293,-131.41310357,0.00010958,2]
[323360092,1713917443304,-500.0,0.00010958,2]
[323360093,1713917443314,-500.0,0.00010958,2]
[323360094,1713917443323,-500.0,0.00010958,2]
[323360095,1713917443333,-153.99730069,0.00010958,2]
[323360096,1713917443382,-18.14859835,0.00010958,2]
[323360097,1713917443393,-283.85140165,0.00010958,2]
[323360098,1713917443448,-216.14859835,0.00010958,2]
[323360099,1713917443456,-47.80745508,0.00010958,2]
[323360107,1713917445973,-620.29351398,0.00010857,2]
[323360108,1713917445983,-46.33168016,0.00010958,2]
[323360118,1713917453173,1442.2858121,0.00010448,2]
[323360119,1713917461394,1251.46309536,0.00010448,2]
[323360120,1713917465811,408.10113394,0.0001041,2]
[323360121,1713917520655,123622.76943575,0.00010455,2]
[323360142,1713918632180,-262.29211227,8.206e-05,2]
[323360143,1713918632190,-155.0,8.207e-05,2]
[323360144,1713918632199,-150.0,8.212e-05,2]
[323360145,1713918632210,-250.96846451,8.213e-05,2]
[323360146,1713918632221,-485.80288671,8.213e-05,2]
[323360147,1713918632232,-4809.70460997,8.213e-05,2]
[323360148,1713918632242,-438.3,8.219e-05,2]
[323360149,1713918632250,-165.26,9.033e-05,2]
[323360150,1713918632260,-159.49,9.095e-05,2]
[323360151,1713918632269,-177.02,9.099e-05,2]
[323360152,1713918632278,-336.66,9.101e-05,2]
[323360153,1713918632287,-1000.0,9.112e-05,2]
[323360154,1713918632296,-3042.77,9.165e-05,2]
[323360155,1713918632306,-387.49,9.928e-05,2]
[323360156,1713918632315,-499.99,9.928e-05,2]
[323360157,1713918632325,-150.99,9.931e-05,2]
[323360158,1713918632334,-387.49,9.931e-05,2]
[323360159,1713918632343,-387.49,9.933e-05,2]
[323360160,1713918632352,-387.49,9.936e-05,2]
[323360161,1713918632361,-387.49,9.938e-05,2]
[323360162,1713918632371,-664.17,9.941e-05,2]
[323360163,1713918632380,-387.49,9.941e-05,2]
[323360164,1713918632390,-387.49,9.944e-05,2]
[323360165,1713918632400,-387.49,9.946e-05,2]
[323360166,1713918632409,-387.49,9.949e-05,2]
[323360167,1713918632419,-387.49,9.951e-05,2]
[323360168,1713918632428,-387.49,9.954e-05,2]
[323360169,1713918632437,-387.49,9.957e-05,2]
[323360170,1713918632447,-681.17948523,9.957e-05,2]
[323360171,1713918632458,-387.49,9.959e-05,2]
[323360172,1713918632467,-387.49,9.962e-05,2]
[323360173,1713918632476,-387.49,9.964e-05,2]
[323360174,1713918632486,-387.49,9.967e-05,2]
[323360175,1713918632495,-56316.627,9.967e-05,2]
[323360176,1713918632504,-387.49,9.97e-05,2]
[323360177,1713918632514,-387.49,9.972e-05,2]
[323360180,1713918632523,-387.49,9.975e-05,2]
[323360184,1713918632532,-387.49,9.978e-05,2]
[323360188,1713918632542,-181.49,0.00010042,2]
[323360191,1713918632551,-301.09,0.00010178,2]
[323360193,1713918632560,-5000.0,0.0001025,2]
[323360195,1713918632569,-1000.0,0.00010251,2]
[323360197,1713918632579,-438.3,0.00010424,2]
[323360200,1713918632588,-151.43,0.00010452,2]
[323360202,1713918632598,-121377.23056425,0.00010455,2]
[323360203,1713918632606,-17968.61,0.00010476,2]
[323360206,1713918632616,-1000.0,0.00010663,2]
[323360208,1713918632625,-300.0,0.000107,3]
[323360210,1713918632634,-300.0,0.000107,3]
[323360211,1713918632642,-300.0,0.00010752,2]
[323360214,1713918632652,-20091.9704,0.00010758,2]
[323360215,1713918632661,-229.30372496,0.00010769,2]
[323360216,1713918632669,-700.0,0.000108,3]
[323360217,1713918632678,-600.0,0.000108,3]
[323360218,1713918632687,-2932.46944655,0.00010847,2]
[323360219,1713918632696,-154.74520019,0.00010848,2]
[323360220,1713918632707,-1000.0,0.00010856,2]
[323360221,1713918632715,-172.05665628,0.00010858,2]
[323360222,1713918632724,-160.3639009,0.00010858,2]
[323360223,1713918632734,-14246.63716276,0.00010858,2]
[323360224,1713918632743,-185.21311159,0.00010858,2]
[323360225,1713918632752,-10000.0,0.00010858,2]
[323360226,1713918632761,-500.0,0.00010858,2]
[323360227,1713918632770,-1000.0,0.00010858,2]
[323360228,1713918632782,-63381.0526,0.00010858,2]
[323360229,1713918632791,-500.0,0.00010869,2]
[323360230,1713918632800,-500.0,0.0001087,2]
[323360231,1713918632809,-1100.0,0.000109,3]
[323360232,1713918632818,-900.0,0.000109,3]
[323360234,1713918632827,-3400.57105278,0.00010954,2]
[323360236,1713918632836,-5712.23958641,0.00010954,2]
[323360238,1713918632846,-6405.91956621,0.00010954,2]
[323360240,1713918632857,-261.58319716,0.00010954,8]
[323360242,1713918632866,-476.45293394,0.00010954,7]
[323360244,1713918632875,-155.0,0.00010954,2]
[323360246,1713918632885,-155.0,0.00010954,2]
[323360248,1713918632894,-158.62060924,0.00010954,2]
[323360250,1713918632903,-249.10410252,0.00010954,2]
[323360252,1713918632912,-408.72028462,0.00010954,2]
[323360254,1713918632921,-847.30984825,0.00010955,2]
[323360256,1713918632930,-12218.98408635,0.00010955,2]
[323360258,1713918632939,-204.47384234,0.00010956,2]
[323360260,1713918632949,-2302.11826297,0.00010956,2]
[323360261,1713918632961,-811.41448345,0.00010956,2]
[323360264,1713918632971,-155.0,0.00010956,2]
[323360266,1713918632981,-1013.90044479,0.00010956,2]
[323360268,1713918632990,-155.0,0.00010956,2]
[323360269,1713918632999,-165.77837514,0.00010956,2]
[323360271,1713918633010,-800.94677864,0.00010956,2]
[323360272,1713918633019,-160.38595136,0.00010956,2]
[323360273,1713918633028,-15453.34592631,0.00010956,2]
[323360274,1713918633041,-5438.39379598,0.00010956,2]
[323360275,1713918633059,-1925.70000001,0.00010956,2]
[323360276,1713918633074,-286.634,0.00010956,2]
[323360277,1713918633087,-7154.56908397,0.00010956,2]
[323360278,1713918633098,-142434.0858612,0.00010956,2]
[323360279,1713918633152,-617.92920426,0.00010956,2]
[323360287,1713918638150,-1686.3250268,0.00010954,2]
[323360289,1713918638261,-137.40091676,0.00010954,2]
[323360290,1713918638271,-6706.49908324,0.00010956,2]
[323360291,1713918638283,-464.36000016,0.00010956,2]
[323360292,1713918638426,-771.07115909,0.00010956,2]
[323360293,1713918638437,-882.06164822,0.00010956,2]
[323360298,1713918640424,-575.26106839,0.00010658,2]
[323360299,1713918640529,-6216.42523161,0.00010658,2]
[323360300,1713918640539,-3657.66294384,0.00010956,2]
[323360301,1713918640550,-7454.5,0.00010956,2]
[323360302,1713918640593,-950.36,0.00010956,2]
[323360303,1713918640605,-664.58225843,0.00010956,2]
[323360304,1713918640617,-112820.70816405,0.00010956,2]
[323360305,1713918640625,-365.5691864,0.00010956,2]
[323360306,1713918640635,-2570.66836,0.00010957,2]
[323360307,1713918640644,-929.0,0.00010958,2]
[323360308,1713918640653,-500.0,0.00010958,2]
[323360309,1713918640662,-500.0,0.00010958,2]
[323360310,1713918640671,-500.0,0.00010958,2]
[323360311,1713918640680,-500.0,0.00010958,2]
[323360312,1713918640689,-418.44055964,0.00010958,2]
[323360313,1713918640698,-500.0,0.00010958,2]
[323360314,1713918640709,-500.0,0.00010958,2]
[323360315,1713918640719,-500.0,0.00010958,2]
[323360316,1713918640728,-500.0,0.00010958,2]
[323360317,1713918640737,-500.0,0.00010958,2]
[323360318,1713918640746,-500.0,0.00010958,2]
[323360319,1713918640755,-500.0,0.00010958,2]
[323360320,1713918640764,-500.0,0.00010958,2]
[323360321,1713918640773,-500.0,0.00010958,2]
[323360322,1713918640785,-500.0,0.00010958,2]
[323360323,1713918640794,-500.0,0.00010958,2]
[323360324,1713918640804,-500.0,0.00010958,2]
[323360325,1713918640813,-500.0,0.00010958,2]
[323360326,1713918640824,-500.0,0.00010958,2]
[323360327,1713918640833,-500.0,0.00010958,2]
[323360328,1713918640842,-500.0,0.00010958,2]
[323360329,1713918640851,-500.0,0.00010958,2]
[323360330,1713918640863,-500.0,0.00010958,2]
[323360331,1713918640873,-500.0,0.00010958,2]
[323360332,1713918640883,-500.0,0.00010958,2]
[323360333,1713918640892,-500.0,0.00010958,2]
[323360334,1713918640901,-500.0,0.00010958,2]
[323360335,1713918640910,-500.0,0.00010958,2]
[323360336,1713918640919,-500.0,0.00010958,2]
[323360337,1713918640929,-500.0,0.00010958,2]
[323360338,1713918640938,-257.12442546,0.00010958,2]
[323360339,1713918640948,-500.0,0.00010958,2]
[323360340,1713918640960,-500.0,0.00010958,2]
[323360341,1713918640968,-500.0,0.00010958,2]
[323360342,1713918640977,-500.0,0.00010958,2]
[323360343,1713918640986,-500.0,0.00010958,2]
[323360344,1713918640994,-391.97456221,0.00010958,2]
[323360345,1713918641004,-500.0,0.00010958,2]
[323360346,1713918641013,-500.0,0.00010958,2]
[323360347,1713918641022,-500.0,0.00010958,2]
[323360348,1713918641031,-500.0,0.00010958,2]
[323360349,1713918641041,-500.0,0.00010958,2]
[323360350,1713918641050,-649.60822994,0.00010958,2]
[323360351,1713918641059,-803.73,0.00010958,2]
[323360352,1713918641068,-500.0,0.00010958,2]
[323360353,1713918641077,-500.0,0.00010958,2]
[323360354,1713918641086,-500.0,0.00010958,2]
[323360355,1713918641095,-500.0,0.00010958,2]
[323360356,1713918641105,-500.0,0.00010958,2]
[323360357,1713918641114,-500.0,0.00010958,2]
[323360358,1713918641123,-500.0,0.00010958,2]
[323360359,1713918641132,-500.0,0.00010958,2]
[323360360,1713918641141,-500.0,0.00010958,2]
[323360361,1713918641150,-500.0,0.00010958,2]
[323360362,1713918641160,-500.0,0.00010958,2]
[323360363,1713918641169,-590.67,0.00010958,2]
[323360364,1713918641179,-500.0,0.00010958,2]
[323360365,1713918641188,-500.0,0.00010958,2]
[323360366,1713918641198,-500.0,0.00010958,2]
[323360367,1713918641209,-500.0,0.00010958,2]
[323360368,1713918641217,-666.55,0.00010958,2]
[323360369,1713918641226,-500.0,0.00010958,2]
[323360370,1713918641235,-237.98874207,0.00010958,2]
[323360371,1713918641244,-500.0,0.00010958,2]
[323360372,1713918641253,-500.0,0.00010958,2]
[323360373,1713918641262,-500.0,0.00010958,2]
[323360374,1713918641271,-500.0,0.00010958,2]
[323360375,1713918641280,-500.0,0.00010958,2]
[323360376,1713918641289,-500.0,0.00010958,2]
[323360377,1713918641299,-590.05,0.00010958,2]
[323360378,1713918641308,-500.0,0.00010958,2]
[323360379,1713918641318,-500.0,0.00010958,2]
[323360380,1713918641327,-688.84,0.00010958,2]
[323360381,1713918641336,-500.0,0.00010958,2]
[323360382,1713918641346,-500.0,0.00010958,2]
[323360383,1713918641354,-504.16,0.00010958,2]
[323360384,1713918641364,-500.0,0.00010958,2]
[323360385,1713918641373,-500.0,0.00010958,2]
[323360386,1713918641382,-582.07,0.00010958,2]
[323360387,1713918641391,-500.0,0.00010958,2]
[323360388,1713918641401,-500.0,0.00010958,2]
[323360389,1713918641410,-500.0,0.00010958,2]
[323360390,1713918641419,-939.07,0.00010958,2]
[323360391,1713918641429,-500.0,0.00010958,2]
[323360392,1713918641438,-500.0,0.00010958,2]
[323360393,1713918641447,-500.0,0.00010958,2]
[323360394,1713918641456,-500.0,0.00010958,2]
[323360395,1713918641470,-872.85,0.00010958,2]
[323360396,1713918641479,-500.0,0.00010958,2]
[323360397,1713918641489,-500.0,0.00010958,2]
[323360398,1713918641498,-858.66,0.00010958,2]
[323360399,1713918641508,-500.0,0.00010958,2]
[323360400,1713918641517,-500.0,0.00010958,2]
[323360401,1713918641526,-500.0,0.00010958,2]
[323360402,1713918641535,-500.0,0.00010958,2]
[323360403,1713918641545,-500.0,0.00010958,2]
[323360404,1713918641554,-500.0,0.00010958,2]
[323360405,1713918641563,-500.0,0.00010958,2]
[323360406,1713918641572,-500.0,0.00010958,2]
[323360407,1713918641581,-500.0,0.00010958,2]
[323360408,1713918641590,-500.0,0.00010958,2]
[323360409,1713918641599,-500.0,0.00010958,2]
[323360410,1713918641608,-500.0,0.00010958,2]
[323360411,1713918641617,-628.13,0.00010958,2]
[323360412,1713918641626,-774.35,0.00010958,2]
[323360413,1713918641635,-656.85,0.00010958,2]
[323360414,1713918641644,-500.0,0.00010958,2]
[323360415,1713918641654,-500.0,0.00010958,2]
[323360416,1713918641663,-538.04,0.00010958,2]
[323360417,1713918641672,-500.0,0.00010958,2]
[323360418,1713918641682,-1084.69,0.00010958,2]
[323360419,1713918641691,-541.38,0.00010958,2]
[323360420,1713918641700,-500.0,0.00010958,2]
[323360421,1713918641712,-500.0,0.00010958,2]
[323360422,1713918641722,-500.0,0.00010958,2]
[323360423,1713918641731,-500.0,0.00010958,2]
[323360424,1713918641741,-500.0,0.00010958,2]
[323360425,1713918641750,-500.0,0.00010958,2]
[323360426,1713918641759,-500.0,0.00010958,2]
[323360427,1713918641769,-500.0,0.00010958,2]
[323360428,1713918641780,-500.0,0.00010958,2]
[323360429,1713918641790,-229.31355876,0.00010958,2]
[323360430,1713918641799,-500.0,0.00010958,2]
[323360431,1713918641809,-500.0,0.00010958,2]
[323360432,1713918641818,-500.0,0.00010958,2]
[323360433,1713918641828,-500.0,0.00010958,2]
[323360434,1713918641838,-500.0,0.00010958,2]
[323360435,1713918641847,-500.0,0.00010958,2]
[323360436,1713918641858,-500.0,0.00010958,2]
[323360437,1713918641869,-500.0,0.00010958,2]
[323360438,1713918641878,-602.44,0.00010958,2]
[323360439,1713918641887,-500.0,0.00010958,2]
[323360440,1713918641897,-500.0,0.00010958,2]
[323360441,1713918641906,-500.0,0.00010958,2]
[323360442,1713918641916,-703.29,0.00010958,2]
[323360443,1713918641926,-500.0,0.00010958,2]
[323360444,1713918641937,-500.0,0.00010958,2]
[323360445,1713918641946,-500.0,0.00010958,2]
[323360446,1713918641956,-500.0,0.00010958,2]
[323360447,1713918641969,-860.33,0.00010958,2]
[323360448,1713918641979,-500.0,0.00010958,2]
[323360449,1713918641988,-515.19741678,0.00010958,2]
[323360450,1713918641998,-500.0,0.00010958,2]
[323360451,1713918642007,-500.0,0.00010958,2]
[323360452,1713918642017,-521.83,0.00010958,2]
[323360453,1713918642027,-500.0,0.00010958,2]
[323360454,1713918642036,-500.0,0.00010958,2]
[323360455,1713918642045,-628.11,0.00010958,2]
[323360456,1713918642055,-373.39555973,0.00010958,2]
[323360457,1713918642064,-500.0,0.00010958,2]
[323360458,1713918642075,-500.0,0.00010958,2]
[323360459,1713918642085,-500.0,0.00010958,2]
[323360460,1713918642094,-500.0,0.00010958,2]
[323360461,1713918642105,-500.0,0.00010958,2]
[323360462,1713918642114,-500.0,0.00010958,2]
[323360463,1713918642124,-500.0,0.00010958,2]
[323360464,1713918642138,-500.0,0.00010958,2]
[323360465,1713918642150,-682.99,0.00010958,2]
[323360466,1713918642160,-500.0,0.00010958,2]
[323360467,1713918642169,-676.64,0.00010958,2]
[323360468,1713918642179,-500.0,0.00010958,2]
[323360469,1713918642188,-563.85,0.00010958,2]
[323360470,1713918642198,-500.0,0.00010958,2]
[323360471,1713918642208,-500.0,0.00010958,2]
[323360472,1713918642219,-558.39,0.00010958,2]
[323360473,1713918642229,-500.0,0.00010958,2]
[323360474,1713918642239,-500.0,0.00010958,2]
[323360475,1713918642250,-500.0,0.00010958,2]
[323360476,1713918642259,-837.67,0.00010958,2]
[323360477,1713918642269,-625.19,0.00010958,2]
[323360478,1713918642279,-500.0,0.00010958,2]
[323360479,1713918642289,-895.06,0.00010958,2]
[323360480,1713918642299,-500.0,0.00010958,2]
[323360481,1713918642309,-500.0,0.00010958,2]
[323360482,1713918642319,-500.0,0.00010958,2]
[323360483,1713918642329,-500.0,0.00010958,2]
[323360484,1713918642338,-500.0,0.00010958,2]
[323360485,1713918642348,-500.0,0.00010958,2]
[323360486,1713918642357,-500.0,0.00010958,2]
[323360487,1713918642367,-500.0,0.00010958,2]
[323360488,1713918642377,-500.0,0.00010958,2]
[323360489,1713918642386,-500.0,0.00010958,2]
[323360490,1713918642396,-674.54,0.00010958,2]
[323360491,1713918642406,-500.0,0.00010958,2]
[323360492,1713918642415,-500.0,0.00010958,2]
[323360493,1713918642424,-500.0,0.00010958,2]
[323360494,1713918642434,-500.0,0.00010958,2]
[323360495,1713918642443,-500.0,0.00010958,2]
[323360496,1713918642453,-978.06,0.00010958,2]
[323360497,1713918642464,-500.0,0.00010958,2]
[323360498,1713918642473,-761.36,0.00010958,2]
[323360499,1713918642482,-500.0,0.00010958,2]
[323360500,1713918642491,-500.0,0.00010958,2]
[323360501,1713918642501,-500.0,0.00010958,2]
[323360502,1713918642510,-500.0,0.00010958,2]
[323360503,1713918642520,-500.0,0.00010958,2]
[323360504,1713918642529,-500.0,0.00010958,2]
[323360505,1713918642539,-500.0,0.00010958,2]
[323360506,1713918642548,-1023.62,0.00010958,2]
[323360507,1713918642557,-500.0,0.00010958,2]
[323360508,1713918642567,-500.0,0.00010958,2]
[323360509,1713918642576,-500.0,0.00010958,2]
[323360510,1713918642585,-500.0,0.00010958,2]
[323360511,1713918642595,-334.35791489,0.00010958,2]
[323360512,1713918642604,-500.0,0.00010958,2]
[323360513,1713918642614,-500.0,0.00010958,2]
[323360514,1713918642623,-500.0,0.00010958,2]
[323360515,1713918642632,-500.0,0.00010958,2]
[323360516,1713918642642,-820.09,0.00010958,2]
[323360517,1713918642651,-500.0,0.00010958,2]
[323360518,1713918642660,-500.0,0.00010958,2]
[323360519,1713918642669,-500.0,0.00010958,2]
[323360520,1713918642679,-500.0,0.00010958,2]
[323360521,1713918642688,-500.0,0.00010958,2]
[323360522,1713918642698,-500.0,0.00010958,2]
[323360523,1713918642706,-500.0,0.00010958,2]
[323360524,1713918642722,-500.0,0.00010958,2]
[323360525,1713918642731,-1004.28,0.00010958,2]
[323360526,1713918642741,-500.0,0.00010958,2]
[323360527,1713918642750,-500.0,0.00010958,2]
[323360528,1713918642759,-500.0,0.00010958,2]
[323360529,1713918642768,-500.0,0.00010958,2]
[323360530,1713918642779,-500.0,0.00010958,2]
[323360531,1713918642789,-500.0,0.00010958,2]
[323360532,1713918642799,-500.0,0.00010958,2]
[323360533,1713918642808,-500.0,0.00010958,2]
[323360534,1713918642818,-502.96446237,0.00010958,2]
[323360535,1713918642829,-846.26,0.00010958,2]
[323360536,1713918642838,-635.17,0.00010958,2]
[323360537,1713918642847,-500.0,0.00010958,2]
[323360538,1713918642860,-313.6488577,0.00010958,2]
[323360572,1713918644651,-389.9211423,0.00010958,2]
[323360573,1713918644663,-80.30885772,0.00010958,2]
[323360574,1713918644676,-419.69114228,0.00010958,2]
[323360575,1713918644687,-641.11,0.00010958,2]
[323360576,1713918644696,-500.0,0.00010958,2]
[323360577,1713918644708,-786.97,0.00010958,2]
[323360578,1713918644720,-500.0,0.00010958,2]
[323360579,1713918644729,-500.0,0.00010958,2]
[323360580,1713918644738,-500.0,0.00010958,2]
[323360581,1713918644746,-150.0,0.00010958,2]